lending/lending_fUSD_20240603
["ID","MTS","AMOUNT","RATE_DAILY","PERIOD"]
[328456113,1717413038829,-182.45983684,0.00031397,3]
[328456114,1717413038838,-19813.0,0.000314,2]
[328456115,1717413038848,-345.0,0.000314,4]
[328456116,1717413038857,-173.12188218,0.000314,2]
[328456117,1717413038867,-6080.32851638,0.000314,2]
[328456118,1717413038876,-200.42484092,0.000314,2]
[328456119,1717413038885,-150.0,0.000314,7]
[328456120,1717413038895,-1041.17747814,0.000314,2]
[328456121,1717413038904,-167.0,0.00031405,2]
[328456122,1717413038914,-654.0,0.00031469,15]
[328456123,1717413038923,-175.68,0.0003147,15]
[328456124,1717413038932,-654.0,0.0003147,15]
[328456125,1717413038942,-654.0,0.00031479,15]
[328456126,1717413038952,-205.94,0.0003148,15]
[328456127,1717413038961,-150.5,0.0003148,15]
[328456128,1717413038971,-654.0,0.0003148,15]
[328456129,1717413038980,-10056.06606899,0.0003148,2]
[328456130,1717413038989,-174.15,0.0003148,15]
[328456131,1717413038998,-199.336617,0.0003148,7]
[328456132,1717413039008,-151.0,0.00031484,7]
[328456133,1717413039017,-20805.5034835,0.00031484,2]
[328456134,1717413039028,-12004.0162131,0.00031484,2]
[328456135,1717413039038,-2266.3002989,0.00031484,2]
[328456136,1717413039048,-3350.1781585,0.00031484,2]
[328456137,1717413039057,-500.0,0.00031485,4]
[328456138,1717413039067,-401.46920216,0.00031485,4]
[328456139,1717413039076,-151.0,0.00031485,7]
[328456140,1717413039086,-438.05087981,0.00031486,4]
[328456141,1717413039095,-500.0,0.00031486,4]
[328456142,1717413039105,-500.0,0.00031486,4]
[328456143,1717413039114,-500.0,0.00031486,4]
[328456144,1717413039124,-1000.0,0.00031486,2]
[328456145,1717413039133,-1000.0,0.00031486,2]
[328456146,1717413039143,-1000.0,0.00031486,2]
[328456147,1717413039152,-1000.0,0.00031486,2]
[328456148,1717413039161,-1000.0,0.00031486,2]
[328456149,1717413039170,-1000.0,0.00031486,2]
[328456150,1717413039179,-1000.0,0.00031486,2]
[328456151,1717413039188,-1000.0,0.00031486,2]
[328456152,1717413039198,-1000.0,0.00031486,2]
[328456153,1717413039207,-1000.0,0.00031486,2]
[328456154,1717413039216,-1000.0,0.00031486,2]
[328456155,1717413039225,-1000.0,0.00031486,2]
[328456156,1717413039234,-1000.0,0.00031486,2]
[328456157,1717413039243,-1000.0,0.00031486,2]
[328456158,1717413039251,-1000.0,0.00031486,2]
[328456159,1717413039261,-1000.0,0.00031486,2]
[328456160,1717413039270,-1000.0,0.00031486,2]
[328456161,1717413039279,-1000.0,0.00031486,2]
[328456162,1717413039289,-598.0,0.00031486,2]
[328456163,1717413039298,-318.50155529,0.00031487,7]
[328456164,1717413039307,-376.28341195,0.00031488,2]
[328456165,1717413039316,-150.01,0.00031489,2]
[328456166,1717413039325,-3536.90330601,0.00031489,2]
[328456167,1717413039335,-31.85467034,0.00031489,15]
[328456170,1717413040377,-226.51830624,0.000201,2]
[328456173,1717413040393,-622.14532966,0.00031489,15]
[328456175,1717413040407,-150.5,0.0003149,15]
[328456177,1717413040419,-150.5,0.0003149,15]
[328456179,1717413040431,-165.0,0.0003149,22]
[328456180,1717413040443,-654.0,0.0003149,15]
[328456181,1717413040454,-150.5,0.0003149,15]
[328456182,1717413040466,-150.5,0.0003149,15]
[328456183,1717413040479,-151.0,0.0003149,7]
[328456185,1717413040490,-376.28341195,0.0003149,2]
[328456188,1717413040502,-150.0,0.00031496,5]
[328456190,1717413040515,-300.0,0.00031496,10]
[328456192,1717413040527,-300.0,0.00031496,10]
[328456193,1717413040538,-458.54402215,0.00031496,15]
[328456194,1717413040554,-294.11155773,0.00031496,15]
[328456195,1717413040565,-150.0,0.00031496,7]
[328456196,1717413040576,-155.88844227,0.00031497,13]
[328456197,1717413040588,-6895.9,0.00031497,13]
[328456200,1717413041164,-833.89190825,0.00031497,13]
[328456209,1717413043542,-500.0,0.00030136,4]
[328456210,1717413043553,-520.22,0.00030136,4]
[328456211,1717413043564,-1418.12,0.00030136,4]
[328456212,1717413043575,-320.37410019,0.0003041,4]
[328456213,1717413043586,-520.22,0.0003041,4]
[328456214,1717413043599,-1319.44592486,0.0003041,4]
[328456215,1717413043612,-98.67407514,0.0003041,4]
[328456216,1717413043623,-520.22,0.00030684,4]
[328456217,1717413043633,-1418.12,0.00030684,4]
[328456218,1717413043643,-520.22,0.00030958,4]
[328456219,1717413043654,-1418.12,0.00030958,4]
[328456220,1717413043664,-3380.96295631,0.00031,5]
[328456221,1717413043677,-4043.23692891,0.00031,5]
[328456222,1717413043690,-104989.34011478,0.00031,5]
[328456223,1717413043700,-520.22,0.00031232,4]
[328456224,1717413043712,-1418.12,0.00031232,4]
[328456225,1717413043722,-150.01,0.00031489,2]
[328456226,1717413043733,-3389.53233493,0.00031489,2]
[328456227,1717413043744,-118719.71087714,0.00031497,13]
[328456228,1717413043756,-2986.74269972,0.00031497,13]
[328456229,1717413043769,-2040.85469462,0.00031497,13]
[328456230,1717413043782,-10518.00621538,0.00031497,13]
[328456231,1717413043794,-555.31470088,0.00031497,13]
[328456232,1717413043807,-1583.08167753,0.00031497,13]
[328456483,1717413046559,-15228.53491843,0.00031497,13]
[328456812,1717413049870,-150.01,0.00031489,2]
[328456813,1717413049880,-433.7664668,0.00031489,2]
[328456814,1717413049892,-1244.42602612,0.00031489,2]
[328457101,1717413060773,861.9985378,0.00031,30]
[328457102,1717413064424,1041.43553374,0.00019451,2]
[328457103,1717413073138,36919.40581756,0.00019451,2]
[328457104,1717413098015,207.96127058,0.00017259,2]
[328457105,1717413122515,150.0,0.00019725,2]
[328457107,1717413457253,155.0,0.00019451,2]
[328457108,1717413513466,296.512316,0.00019451,2]
[328457109,1717413890348,155.0,0.00019451,2]
[328457110,1717413991308,2201.76169004,0.00031,30]
[328457133,1717414231853,-155.0,0.00024283,2]
[328457134,1717414231863,-154.15186399,0.00024284,2]
[328457135,1717414231873,-157.75,0.00024384,2]
[328457136,1717414231882,-1250.0,0.00025,2]
[328457137,1717414231891,-1412.0,0.000262,3]
[328457138,1717414231901,-150.99,0.000262,2]
[328457139,1717414231910,-821.24,0.000262,2]
[328457140,1717414231920,-779.46,0.000262,2]
[328457141,1717414231930,-184.58,0.000262,2]
[328457142,1717414231940,-150.99,0.000262,2]
[328457143,1717414231948,-389.96,0.00027363,2]
[328457144,1717414231958,-250.0,0.00029236,2]
[328457145,1717414231967,-985.84,0.00029278,2]
[328457146,1717414231976,-2318.96,0.0002928,2]
[328457147,1717414231985,-591.39,0.00029344,2]
[328457148,1717414231995,-10996.73,0.00029359,2]
[328457149,1717414232004,-250.0,0.00029378,2]
[328457150,1717414232013,-1000.0,0.00029386,2]
[328457151,1717414232023,-190.05,0.00029426,2]
[328457152,1717414232032,-1453.18055891,0.00029539,2]
[328457153,1717414232043,-409.19944109,0.00029539,2]
[328457154,1717414232052,-389.96,0.00029627,2]
[328457155,1717414232062,-1000.0,0.000303,2]
[328457156,1717414232071,-157.75,0.0003031,2]
[328457157,1717414232080,-161.10334417,0.00030547,7]
[328457158,1717414232089,-154.03121003,0.00030832,7]
[328457159,1717414232098,-729.09281928,0.000311,2]
[328457160,1717414232109,-270.90718072,0.000311,2]
[328457161,1717414232120,-413.81190194,0.0003117,2]
[328457162,1717414232132,-89.09406806,0.0003117,2]
[328457163,1717414232141,-156.18366249,0.00031175,3]
[328457164,1717414232151,-31.02626945,0.0003123,4]
[328457165,1717414232162,-468.97373055,0.0003123,4]
[328457166,1717414232171,-98.16626945,0.0003123,4]
[328457167,1717414232183,-401.83373055,0.0003123,4]
[328457168,1717414232193,-291.73505969,0.0003123,4]
[328457169,1717414232202,-647.42478223,0.0003123,4]
[328457170,1717414232211,-643.6053828,0.0003123,4]
[328457171,1717414232220,-33.09071712,0.0003123,4]
[328457172,1717414232232,-438.97877864,0.0003123,4]
[328457173,1717414232243,-27.93050424,0.0003123,4]
[328457174,1717414232252,-500.0,0.0003123,4]
[328457175,1717414232261,-516.16824137,0.0003123,4]
[328457176,1717414232270,-500.0,0.0003123,4]
[328457177,1717414232279,-741.93246442,0.0003123,5]
[328457178,1717414232290,-384.75478299,0.0003123,5]
[328457179,1717414232481,-510.0817999,0.0003123,4]
[328457180,1717414232490,-970.85,0.0003123,4]
[328457181,1717414232499,-500.0,0.0003123,4]
[328457182,1717414232508,-500.0,0.0003123,4]
[328457183,1717414232518,-500.0,0.00031238,2]
[328457184,1717414232527,-200.0,0.00031238,2]
[328457185,1717414232537,-2500.0,0.00031282,2]
[328457186,1717414232546,-7500.0,0.00031282,2]
[328457187,1717414232555,-154.53950398,0.00031283,15]
[328457188,1717414232564,-326.1980799,0.00031283,2]
[328457189,1717414232574,-588.73,0.00031298,4]
[328457190,1717414232583,-500.0,0.00031298,4]
[328457191,1717414232593,-1690.62,0.00031298,4]
[328457192,1717414232603,-153.72,0.00031298,4]
[328457193,1717414232612,-500.0,0.00031298,4]
[328457194,1717414232622,-500.0,0.00031298,4]
[328457195,1717414232631,-570.76,0.00031298,4]
[328457196,1717414232641,-500.0,0.00031298,4]
[328457197,1717414232650,-500.0,0.00031298,4]
[328457198,1717414232659,-2277.73,0.00031298,4]
[328457199,1717414232668,-500.0,0.00031298,4]
[328457200,1717414232677,-500.0,0.00031298,4]
[328457201,1717414232687,-500.0,0.00031298,4]
[328457202,1717414232696,-1122.68,0.00031298,4]
[328457203,1717414232706,-4685.958675,0.000313,2]
[328457204,1717414232716,-871.81,0.0003137,2]
[328457205,1717414232726,-159.66,0.00031372,2]
[328457206,1717414232735,-159.66,0.00031373,2]
[328457207,1717414232745,-500.0,0.00031381,4]
[328457208,1717414232755,-500.0,0.00031381,4]
[328457209,1717414232765,-500.0,0.00031381,4]
[328457210,1717414232777,-500.0,0.00031381,4]
[328457211,1717414232787,-500.0,0.00031381,4]
[328457212,1717414232796,-476.12315691,0.00031381,4]
[328457213,1717414232808,-500.0,0.00031381,4]
[328457214,1717414232818,-500.0,0.00031381,4]
[328457215,1717414232828,-500.0,0.00031381,4]
[328457216,1717414232837,-578.27,0.00031381,4]
[328457217,1717414232848,-1467.14,0.00031381,4]
[328457218,1717414232859,-563.29,0.00031381,4]
[328457219,1717414232869,-500.0,0.00031381,4]
[328457220,1717414232878,-500.0,0.00031381,4]
[328457221,1717414232887,-500.0,0.00031381,4]
[328457222,1717414232897,-500.0,0.00031381,4]
[328457223,1717414232906,-500.0,0.00031381,4]
[328457224,1717414232915,-500.0,0.00031381,4]
[328457225,1717414232925,-31825.97398632,0.00031382,4]
[328457226,1717414232938,-380.03886704,0.00031382,4]
[328457227,1717414232957,-68856.04980792,0.00031382,4]
[328457228,1717414232968,-7460.76891915,0.00031382,4]
[328457229,1717414232989,-1213.93749004,0.00031382,4]
[328457230,1717414233002,-900.60526342,0.00031382,4]
[328457231,1717414233014,-1647.10744656,0.00031382,4]
[328457232,1717414237807,-3218.69297135,0.00031382,4]
[328457235,1717414237821,-314.86,0.00031382,4]
[328457237,1717414237833,-5641.70032621,0.00031382,4]
[328457242,1717414238136,-19088.49871239,0.00031382,4]
[328457243,1717414238149,-2917.58983595,0.00031382,4]
[328457244,1717414238160,-401.46965272,0.00031382,4]
[328457245,1717414238172,-710.733,0.00031382,4]
[328457246,1717414238183,-202200.0,0.00031382,4]
[328457247,1717414238196,-10970.13550763,0.00031382,4]
[328457248,1717414238207,-250.39418971,0.00031382,4]
[328457268,1717414242278,-930.4,0.00031298,4]
[328457270,1717414242288,-403.715,0.00031381,4]
[328457399,1717414245152,-340.56463155,0.00031283,2]
[328457400,1717414245162,-96.285,0.00031381,4]
[328457401,1717414245173,-142001.44402359,0.00031382,4]
[328457402,1717414245183,-150643.4685,0.00031383,2]
[328457403,1717414245194,-16110.1933,0.00031397,2]
[328457404,1717414245203,-1880.02044648,0.00031397,3]
[328457405,1717414245213,-345.0,0.000314,4]
[328457406,1717414245223,-150.0,0.000314,7]
[328457407,1717414245233,-694.11831876,0.000314,2]
[328457408,1717414245243,-4053.55234426,0.000314,2]
[328457409,1717414245253,-6459.2450445,0.000314,2]
[328457410,1717414245263,-261.0,0.0003147,15]
[328457411,1717414245272,-151.25,0.00031473,2]
[328457412,1717414245282,-261.0,0.0003148,15]
[328457413,1717414245292,-8266.3532516,0.00031483,2]
[328457414,1717414245302,-69333.8065625,0.00031483,2]
[328457415,1717414245312,-2643.1195343,0.00031483,2]
[328457416,1717414245322,-159.66,0.00031487,2]
[328457417,1717414245333,-159.66,0.00031487,2]
[328457418,1717414245343,-159.66,0.00031487,2]
[328457419,1717414245354,-151.25,0.00031487,2]
[328457420,1717414245363,-151.25,0.00031487,2]
[328457421,1717414245373,-151.25,0.00031487,2]
[328457422,1717414245383,-151.25,0.00031487,2]
[328457423,1717414245392,-151.25,0.00031487,2]
[328457424,1717414245402,-151.25,0.00031488,2]
[328457425,1717414245412,-150.01,0.00031489,2]
[328457426,1717414245421,-3178.37713377,0.00031489,2]
[328457427,1717414245430,-261.0,0.0003149,15]
[328457428,1717414245441,-159.66,0.0003149,2]
[328457429,1717414245450,-151.25,0.0003149,2]
[328457431,1717414245459,-151.25,0.0003149,2]
[328457433,1717414245468,-151.25,0.0003149,2]
[328457434,1717414245478,-151.25,0.0003149,2]
[328457436,1717414245487,-151.25,0.0003149,2]
[328457437,1717414245495,-151.25,0.0003149,2]
[328457438,1717414245503,-151.25,0.0003149,2]
[328457439,1717414245513,-151.25,0.0003149,2]
[328457440,1717414245523,-151.25,0.0003149,2]
[328457441,1717414245532,-151.25,0.0003149,2]
[328457442,1717414245542,-151.25,0.0003149,2]
[328457443,1717414245551,-151.25,0.0003149,2]
[328457444,1717414245561,-151.25,0.0003149,2]
[328457445,1717414245570,-151.25,0.0003149,2]
[328457446,1717414245579,-151.25,0.0003149,2]
[328457447,1717414245588,-151.25,0.0003149,2]
[328457448,1717414245598,-151.25,0.0003149,2]
[328457449,1717414245607,-151.25,0.0003149,2]
[328457450,1717414245616,-151.25,0.0003149,2]
[328457451,1717414245626,-151.25,0.0003149,2]
[328457452,1717414245635,-300.0,0.00031496,10]
[328457453,1717414245644,-300.0,0.00031496,10]
[328457454,1717414245654,-152.59054515,0.00031496,7]
[328457455,1717414245663,-10000.051992,0.00031497,3]
[328457456,1717414245672,-105876.25545983,0.00031497,13]
[328457457,1717414245681,-300.0,0.00031497,10]
[328457458,1717414245691,-300.0,0.00031497,10]
[328457459,1717414245700,-105127.3405931,0.00031497,7]
[328457460,1717414245713,-1424.78125451,0.00031497,7]
[328457461,1717414245724,-6644.55524363,0.00031497,7]
[328457462,1717414245740,-793.6604715,0.00031497,7]
[328457463,1717414245751,-12224.84421935,0.00031497,7]
[328457464,1717414245763,-167389.37512855,0.00031497,7]
[328457466,1717414245778,-49068.30969535,0.00031497,7]
[328457467,1717414245802,-369.58517862,0.00031497,7]
[328457468,1717414246076,-250.10479714,0.00031497,7]
[328457477,1717414246770,-1814.42695328,0.00031497,7]
[328457479,1717414246786,-2197.79675111,0.00031497,7]
[328457481,1717414246798,-12889.70002755,0.00031497,7]
[328457483,1717414246811,-1523.78274965,0.00031497,7]
[328457484,1717414246823,-918.75679,0.00031497,7]
[328457485,1717414293685,268.92082297,0.00017259,2]
[328457486,1717414297440,209.23906583,0.00017259,2]
[328457487,1717414312186,625.06992541,0.00017259,2]
[328457488,1717414327939,282.59682608,0.00017259,2]
[328457490,1717414382604,150.0,0.00019725,2]
[328457491,1717414396211,-191.042364,0.0003185,120]
[328457492,1717414416922,-3000.0,0.00032876,90]
[328457493,1717414416950,-3000.0,0.00032876,90]
[328457494,1717414416978,-3000.0,0.00032876,90]
[328457495,1717414417006,-3000.0,0.00032876,90]
[328457496,1717414417034,-3000.0,0.00032876,90]
[328457497,1717414417062,-3000.0,0.00032876,90]
[328457498,1717414417092,-150.0,0.0003289,120]
[328457499,1717414417121,-518.06698753,0.00033,120]
[328457500,1717414424286,1662557.88764379,0.00014,2]
[328457501,1717414430231,19529.48831692,0.00017259,2]
[328457502,1717414684014,155.0,0.00019451,2]
[328457503,1717414830556,200.0,0.00018,2]
[328457504,1717414837569,1962.68258229,0.00031,30]
[328457526,1717415431771,-269.0000005,0.00024384,2]
[328457527,1717415431783,-306.63967157,0.00024384,2]
[328457528,1717415431793,-156.46,0.00024384,2]
[328457529,1717415431803,-152.41,0.00024384,2]
[328457530,1717415431812,-293.34092058,0.000263,3]
[328457531,1717415431824,-201.65907942,0.000263,3]
[328457532,1717415431833,-376.9,0.00027828,2]
[328457533,1717415431843,-150.0,0.00028,2]
[328457534,1717415431855,-753.92,0.00028783,2]
[328457535,1717415431864,-150.99,0.00028783,2]
[328457536,1717415431874,-499.99,0.00028783,2]
[328457537,1717415431883,-150.0,0.00028795,2]
[328457538,1717415431893,-808.42414046,0.00029,2]
[328457539,1717415431903,-4781.02268136,0.0002913,10]
[328457540,1717415431913,-2127.36609876,0.0002913,2]
[328457541,1717415431925,-42.32390124,0.0002913,2]
[328457542,1717415431934,-847.13746796,0.00029506,2]
[328457543,1717415431946,-833.36001832,0.00029506,2]
[328457544,1717415431957,-537.12016184,0.00029506,2]
[328457545,1717415431969,-299.66504719,0.00029506,2]
[328457546,1717415431982,-1288.18278739,0.00029506,2]
[328457547,1717415431998,-2225.3245173,0.00029506,2]
[328457548,1717415432008,-250.0,0.00029513,2]
[328457549,1717415432018,-250.0,0.00029537,2]
[328457550,1717415432027,-128.2694393,0.00029574,2]
[328457551,1717415432040,-121.7305607,0.00029574,2]
[328457552,1717415432049,-656.55,0.00029582,2]
[328457553,1717415432059,-190.05,0.00029644,2]
[328457554,1717415432068,-1848.20549209,0.0002966,2]
[328457555,1717415432080,-308.807424,0.0002966,2]
[328457556,1717415432091,-3188.38584379,0.0002966,2]
[328457557,1717415432103,-16720.14124012,0.0002966,2]
[328457558,1717415432113,-1335.74,0.00029701,2]
[328457559,1717415432127,-191.34,0.00029717,2]
[328457560,1717415432136,-158.52,0.00029747,2]
[328457561,1717415432146,-165.46,0.00029801,2]
[328457562,1717415432155,-353.43631528,0.000299,2]
[328457563,1717415432166,-1000.0,0.000299,2]
[328457564,1717415432175,-1298.78853938,0.00029923,2]
[328457565,1717415432184,-1000.0,0.00029976,2]
[328457566,1717415432193,-150.0,0.0003,2]
[328457567,1717415432205,-500.0,0.0003,2]
[328457568,1717415432214,-158.52,0.00030006,2]
[328457569,1717415432226,-376.9,0.00030092,2]
[328457570,1717415432235,-167.72,0.00030171,2]
[328457571,1717415432243,-158.52,0.00030264,2]
[328457572,1717415432253,-154.14656404,0.0003043,7]
[328457573,1717415432262,-158.52,0.00030522,2]
[328457574,1717415432271,-1462.0,0.000307,2]
[328457575,1717415432280,-158.52,0.00030781,2]
[328457576,1717415432290,-152.0,0.00030925,3]
[328457577,1717415432299,-299.27354478,0.00030937,7]
[328457578,1717415432308,-150.0,0.00031,2]
[328457579,1717415432317,-158.52,0.00031039,2]
[328457580,1717415432327,-1000.0,0.000311,2]
[328457581,1717415432336,-69186.3225,0.00031282,2]
[328457582,1717415432345,-158.52,0.00031298,2]
[328457583,1717415432354,-154.53950398,0.000313,15]
[328457584,1717415432364,-610.90163676,0.00031381,4]
[328457585,1717415432373,-500.0,0.00031381,4]
[328457586,1717415432383,-500.0,0.00031381,4]
[328457587,1717415432392,-500.0,0.00031381,4]
[328457588,1717415432403,-500.0,0.00031381,4]
[328457589,1717415432412,-500.0,0.00031381,4]
[328457590,1717415432421,-500.0,0.00031381,4]
[328457591,1717415432431,-6085.69884763,0.00031382,2]
[328457592,1717415432441,-5229.3433,0.00031397,2]
[328457593,1717415432450,-7500.0,0.00031397,2]
[328457594,1717415432460,-326.05973692,0.00031398,2]
[328457595,1717415432469,-319.77514303,0.00031398,2]
[328457596,1717415432481,-1000.0,0.000314,2]
[328457597,1717415432490,-200.86900762,0.000314,3]
[328457598,1717415432499,-345.0,0.000314,4]
[328457599,1717415432508,-711.57044,0.000314,2]
[328457600,1717415432517,-2046.34628365,0.000314,3]
[328457601,1717415432526,-150.0,0.000314,7]
[328457602,1717415432535,-462.74554584,0.000314,2]
[328457603,1717415432545,-183.0,0.0003147,15]
[328457604,1717415432554,-183.0,0.0003148,15]
[328457605,1717415432564,-150.01,0.00031489,2]
[328457606,1717415432574,-3045.9447532,0.00031489,2]
[328457607,1717415432583,-151.2,0.0003149,2]
[328457608,1717415432593,-183.0,0.0003149,15]
[328457609,1717415432602,-151.2,0.0003149,2]
[328457610,1717415432612,-151.2,0.0003149,2]
[328457611,1717415432621,-151.2,0.0003149,2]
[328457612,1717415432631,-151.2,0.0003149,2]
[328457613,1717415432640,-151.2,0.0003149,2]
[328457614,1717415432649,-151.2,0.0003149,2]
[328457615,1717415432659,-151.2,0.0003149,2]
[328457616,1717415432668,-151.2,0.0003149,2]
[328457617,1717415432677,-500.0,0.00031496,4]
[328457618,1717415432686,-500.0,0.00031496,4]
[328457619,1717415432696,-500.0,0.00031496,4]
[328457620,1717415432705,-500.0,0.00031496,4]
[328457621,1717415432715,-500.0,0.00031496,4]
[328457622,1717415432725,-564.2,0.00031496,4]
[328457623,1717415432740,-500.0,0.00031496,4]
[328457624,1717415432750,-1620.17,0.00031496,4]
[328457625,1717415432761,-500.0,0.00031496,4]
[328457626,1717415432771,-500.0,0.00031496,4]
[328457627,1717415432782,-546.97,0.00031496,4]
[328457628,1717415432792,-500.0,0.00031496,4]
[328457629,1717415432802,-500.0,0.00031496,4]
[328457630,1717415432812,-500.0,0.00031496,4]
[328457631,1717415432821,-500.0,0.00031496,4]
[328457632,1717415433055,-500.0,0.00031496,4]
[328457633,1717415433065,-1406.01,0.00031496,4]
[328457634,1717415433074,-2182.83,0.00031496,4]
[328457635,1717415433083,-500.0,0.00031496,4]
[328457636,1717415433092,-392.39,0.00031496,4]
[328457637,1717415433101,-539.82,0.00031496,4]
[328457638,1717415433110,-500.0,0.00031496,4]
[328457639,1717415433121,-500.0,0.00031496,4]
[328457640,1717415433132,-275.51,0.00031496,4]
[328457641,1717415433141,-1075.9,0.00031496,4]
[328457642,1717415433151,-500.0,0.00031496,4]
[328457643,1717415433160,-500.0,0.00031496,4]
[328457644,1717415433170,-891.63,0.00031496,4]
[328457645,1717415433179,-500.0,0.00031496,4]
[328457646,1717415433189,-500.0,0.00031496,4]
[328457647,1717415433200,-437362.73045066,0.00031497,7]
[328457648,1717415433210,-155.82954055,0.00031498,4]
[328457649,1717415433219,-429.14560452,0.00031498,4]
[328457650,1717415433230,-866.4239922,0.00031498,3]
[328457651,1717415433240,-1386.18024784,0.00031498,4]
[328457652,1717415433248,-344.53463632,0.00031498,4]
[328457653,1717415433257,-155.2757474,0.00031498,4]
[328457654,1717415433267,-1382.2174108,0.00031498,4]
[328457655,1717415433277,-167.77918074,0.00031498,4]
[328457656,1717415433286,-1495.69123195,0.00031498,4]
[328457657,1717415433296,-155.0,0.00031498,4]
[328457658,1717415433305,-5000.0,0.00031498,2]
[328457659,1717415433314,-155.23486365,0.00031498,4]
[328457660,1717415433323,-155.0,0.00031498,7]
[328457661,1717415433332,-251.19860556,0.00031498,4]
[328457662,1717415433342,-336.96340952,0.00031498,4]
[328457663,1717415433351,-454.99756716,0.00031498,2]
[328457664,1717415433360,-23958.75137121,0.00031498,4]
[328457665,1717415433370,-3239.534,0.00031498,4]
[328457666,1717415433379,-156.07340225,0.00031498,4]
[328457667,1717415433388,-552.46368907,0.00031498,4]
[328457668,1717415433398,-1388.97892771,0.00031498,4]
[328457669,1717415433407,-155.0,0.00031498,4]
[328457670,1717415433416,-155.0,0.00031498,4]
[328457671,1717415433426,-544.85678975,0.00031498,4]
[328457672,1717415433435,-155.0,0.00031498,4]
[328457673,1717415433445,-480.52973807,0.00031498,4]
[328457674,1717415433454,-205.83868425,0.00031498,4]
[328457675,1717415433464,-3329.83472773,0.00031498,4]
[328457676,1717415433473,-1898.91513286,0.00031498,4]
[328457677,1717415433485,-7523.29268908,0.00031498,4]
[328457678,1717415433494,-155.0,0.00031498,4]
[328457679,1717415433503,-2087.46953038,0.00031498,4]
[328457680,1717415433513,-325.60601034,0.00031498,4]
[328457681,1717415433522,-494.05371952,0.00031498,4]
[328457682,1717415433531,-282.99725191,0.00031498,4]
[328457683,1717415433540,-192.98012758,0.00031498,4]
[328457684,1717415433550,-281.19540885,0.00031498,4]
[328457685,1717415433559,-3797.05081637,0.00031498,4]
[328457686,1717415433568,-1000.0,0.00031498,4]
[328457687,1717415433578,-2371.0294493,0.00031498,4]
[328457688,1717415433587,-2765.64648153,0.00031498,4]
[328457689,1717415433597,-328.91730917,0.00031498,4]
[328457690,1717415433606,-307.45405978,0.00031498,4]
[328457691,1717415433616,-1869.24230916,0.00031498,4]
[328457692,1717415433625,-213.77456754,0.00031498,4]
[328457693,1717415433635,-4422.79789465,0.00031498,4]
[328457694,1717415433644,-4305.02623672,0.00031498,4]
[328457695,1717415433654,-235.80290249,0.00031498,4]
[328457696,1717415433663,-2239.4009364,0.00031498,14]
[328457697,1717415433672,-236.72389951,0.00031498,4]
[328457698,1717415433681,-3895.69769367,0.00031498,2]
[328457699,1717415433691,-7904.58132602,0.00031498,4]
[328457700,1717415433700,-164.23592444,0.00031498,2]
[328457701,1717415433710,-253.09731467,0.00031498,4]
[328457702,1717415433719,-657.69774283,0.00031498,4]
[328457703,1717415433730,-484.94091229,0.00031498,4]
[328457704,1717415433739,-155.0,0.00031498,4]
[328457705,1717415433748,-307.733995,0.00031498,4]
[328457706,1717415433757,-290.36230226,0.00031498,4]
[328457707,1717415433766,-2374.66689968,0.00031498,4]
[328457708,1717415433778,-301.58916168,0.00031498,2]
[328457709,1717415433788,-155.53038523,0.00031498,4]
[328457710,1717415433797,-156.34054427,0.00031498,4]
[328457711,1717415433806,-289.12871554,0.00031498,4]
[328457712,1717415433821,-122.60551877,0.00031498,4]
[328457713,1717415433831,-265.73742083,0.00031498,4]